[Event "Titled Tuesday Blitz October 18 Late 2022"]
[White "Andreikin, Dmitry"]
[Black "Galchenko, Matvey"]
[WhiteFideId "4158814"]
[BlackFideId "24175480"]
[WhiteElo "2736"]
[BlackElo "2423"]
[Result "1-0"]
[Round "04"]
[TimeControl "180+1"]
[Date "2022.10.18"]
[WhiteClock "0:00:13"]
[BlackClock "0:01:13"]

1. d4 {[%clk 0:03:00]}  Nf6 {[%clk 0:02:57]} 2. c4 {[%clk 0:03:01]}  c5 {[%clk 0:02:58]} 3. Nf3 {[%clk 0:03:00]}  cxd4 {[%clk 0:02:58]} 4. Nxd4 {[%clk 0:03:01]}  e5 {[%clk 0:02:58]} 5. Nb5 {[%clk 0:02:59]}  d5 {[%clk 0:02:59]} 6. cxd5 {[%clk 0:02:59]}  Bc5 {[%clk 0:02:59]} 7. e3 {[%clk 0:02:58]}  O-O {[%clk 0:02:59]} 8. N5c3 {[%clk 0:02:57]}  e4 {[%clk 0:03:00]} 9. Be2 {[%clk 0:02:54]}  Bf5 {[%clk 0:02:57]} 10. g4 {[%clk 0:02:52]}  Bg6 {[%clk 0:02:56]} 11. h4 {[%clk 0:02:52]}  h6 {[%clk 0:02:55]} 12. g5 {[%clk 0:02:41]}  hxg5 {[%clk 0:02:54]} 13. hxg5 {[%clk 0:02:41]}  Nh7 {[%clk 0:02:54]} 14. Bh5 {[%clk 0:02:36]}  Qxg5 {[%clk 0:02:49]} 15. Bxg6 {[%clk 0:02:15]}  Qxg6 {[%clk 0:02:50]} 16. Nd2 {[%clk 0:02:08]}  Ng5 {[%clk 0:02:50]} 17. Qh5 {[%clk 0:02:02]}  Qxh5 {[%clk 0:02:27]} 18. Rxh5 {[%clk 0:02:03]}  f6 {[%clk 0:02:21]} 19. Ndxe4 {[%clk 0:02:00]}  Nxe4 {[%clk 0:02:22]} 20. Nxe4 {[%clk 0:02:00]}  Nd7 {[%clk 0:02:23]} 21. Bd2 {[%clk 0:01:57]}  Rfe8 {[%clk 0:02:18]} 22. Nxc5 {[%clk 0:01:45]}  Nxc5 {[%clk 0:02:19]} 23. Ke2 {[%clk 0:01:45]}  Rad8 {[%clk 0:02:18]} 24. Rc1 {[%clk 0:01:43]}  b6 {[%clk 0:02:02]} 25. Bb4 {[%clk 0:01:41]}  Ne4 {[%clk 0:01:58]} 26. Rc7 {[%clk 0:01:34]}  Ng5 {[%clk 0:01:57]} 27. Rxa7 {[%clk 0:01:14]}  Rxd5 {[%clk 0:01:52]} 28. f4 {[%clk 0:01:14]}  Rd4 {[%clk 0:01:53]} 29. Re7 {[%clk 0:00:59]}  Rxb4 {[%clk 0:01:45]} 30. Rxe8+ {[%clk 0:00:57]}  Kf7 {[%clk 0:01:46]} 31. Rb8 {[%clk 0:00:51]}  Rxb2+ {[%clk 0:01:43]} 32. Kd3 {[%clk 0:00:51]}  Kg6 {[%clk 0:01:40]} 33. Rh1 {[%clk 0:00:44]}  Ne6 {[%clk 0:01:39]} 34. Ke4 {[%clk 0:00:36]}  Nc5+ {[%clk 0:01:38]} 35. Kf3 {[%clk 0:00:36]}  Nd7 {[%clk 0:01:34]} 36. Rg1+ {[%clk 0:00:34]}  Kf5 {[%clk 0:01:30]} 37. Rd8 {[%clk 0:00:25]}  Nc5 {[%clk 0:01:29]} 38. Rxg7 {[%clk 0:00:23]}  Rxa2 {[%clk 0:01:27]} 39. Rd6 {[%clk 0:00:20]}  Ne4 {[%clk 0:01:19]} 40. Rd5+ {[%clk 0:00:19]}  Ke6 {[%clk 0:01:20]} 41. Kxe4 {[%clk 0:00:15]}  f5+ {[%clk 0:01:19]} 42. Rxf5 {[%clk 0:00:15]}  Ra4+ {[%clk 0:01:19]} 43. Kf3 {[%clk 0:00:16]}  Kxf5 {[%clk 0:01:20]} 44. Rg5+ {[%clk 0:00:15]}  Ke6 {[%clk 0:01:18]} 45. Rg6+ {[%clk 0:00:15]}  Kf5 {[%clk 0:01:16]} 46. Rxb6 {[%clk 0:00:16]}  Ra3 {[%clk 0:01:16]} 47. Rb5+ {[%clk 0:00:16]}  Kf6 {[%clk 0:01:16]} 48. Rb4 {[%clk 0:00:15]}  Ra1 {[%clk 0:01:15]} 49. Ke4 {[%clk 0:00:14]}  Ra6 {[%clk 0:01:15]} 50. Rd4 {[%clk 0:00:14]}  Re6+ {[%clk 0:01:15]} 51. Kf3 {[%clk 0:00:14]}  Ra6 {[%clk 0:01:16]} 52. e4 {[%clk 0:00:14]}  Ra1 {[%clk 0:01:14]} 53. Rd6+ {[%clk 0:00:14]}  Ke7 {[%clk 0:01:14]} 54. e5 {[%clk 0:00:14]}  Rf1+ {[%clk 0:01:13]} 55. Ke4 {[%clk 0:00:15]}  Rd1 {[%clk 0:01:13]} 56. Rxd1 {[%clk 0:00:13]} 1-0


[Site "https://www.chess.com"]

[Event "Titled Tuesday Blitz October 18 Late 2022"]
[White "Ansh M Shah"]
[Black "Roque Sola, Jose Luis"]
[WhiteFideId "25033379"]
[BlackFideId "5120390"]
[WhiteElo "2084"]
[BlackElo "2117"]
[Result "1-0"]
[Round "04"]
[TimeControl "180+1"]
[Date "2022.10.19"]
[WhiteClock "0:00:07"]
[BlackClock "0:00:01"]

1. d4 {[%clk 0:03:00]}  Nf6 {[%clk 0:02:58]} 2. c4 {[%clk 0:03:01]}  g6 {[%clk 0:02:57]} 3. h4 {[%clk 0:02:54]}  Bg7 {[%clk 0:02:49]} 4. Nc3 {[%clk 0:02:53]}  d5 {[%clk 0:02:48]} 5. h5 {[%clk 0:02:49]}  dxc4 {[%clk 0:02:36]} 6. h6 {[%clk 0:02:48]}  Bf8 {[%clk 0:02:35]} 7. e4 {[%clk 0:02:49]}  e6 {[%clk 0:02:31]} 8. Bxc4 {[%clk 0:02:46]}  Nc6 {[%clk 0:02:26]} 9. Nf3 {[%clk 0:02:42]}  Bb4 {[%clk 0:01:52]} 10. Bg5 {[%clk 0:02:35]}  Be7 {[%clk 0:01:52]} 11. O-O {[%clk 0:02:19]}  Ng4 {[%clk 0:01:35]} 12. Bxe7 {[%clk 0:02:15]}  Qxe7 {[%clk 0:01:36]} 13. d5 {[%clk 0:02:07]}  Nce5 {[%clk 0:01:15]} 14. Nxe5 {[%clk 0:01:32]}  Nxe5 {[%clk 0:01:16]} 15. Qd4 {[%clk 0:01:28]}  Qf6 {[%clk 0:01:16]} 16. Rad1 {[%clk 0:01:22]}  O-O {[%clk 0:00:49]} 17. Be2 {[%clk 0:00:45]}  Nd7 {[%clk 0:00:24]} 18. dxe6 {[%clk 0:00:29]}  fxe6 {[%clk 0:00:18]} 19. Bc4 {[%clk 0:00:20]}  Qxd4 {[%clk 0:00:16]} 20. Bxe6+ {[%clk 0:00:19]}  Kh8 {[%clk 0:00:15]} 21. Rxd4 {[%clk 0:00:19]}  Ne5 {[%clk 0:00:14]} 22. Bxc8 {[%clk 0:00:18]}  Raxc8 {[%clk 0:00:15]} 23. f3 {[%clk 0:00:18]}  Nf7 {[%clk 0:00:15]} 24. Rd7 {[%clk 0:00:15]}  Nxh6 {[%clk 0:00:15]} 25. Rfd1 {[%clk 0:00:15]}  Rf7 {[%clk 0:00:15]} 26. Rxf7 {[%clk 0:00:13]}  Nxf7 {[%clk 0:00:16]} 27. Nb5 {[%clk 0:00:12]}  a6 {[%clk 0:00:13]} 28. Nd4 {[%clk 0:00:11]}  Kg8 {[%clk 0:00:11]} 29. Ne6 {[%clk 0:00:10]}  Nd6 {[%clk 0:00:11]} 30. Kf2 {[%clk 0:00:09]}  Kf7 {[%clk 0:00:11]} 31. Nxc7 {[%clk 0:00:09]}  Rxc7 {[%clk 0:00:10]} 32. Rxd6 {[%clk 0:00:09]}  Rc2+ {[%clk 0:00:10]} 33. Kg3 {[%clk 0:00:10]}  Rxb2 {[%clk 0:00:10]} 34. a4 {[%clk 0:00:11]}  Rb4 {[%clk 0:00:09]} 35. a5 {[%clk 0:00:10]}  Rb5 {[%clk 0:00:09]} 36. Rd5 {[%clk 0:00:08]}  Rb2 {[%clk 0:00:05]} 37. Rc5 {[%clk 0:00:05]}  Kg7 {[%clk 0:00:04]} 38. Kh3 {[%clk 0:00:05]}  Kh6 {[%clk 0:00:04]} 39. g3 {[%clk 0:00:05]}  b6 {[%clk 0:00:03]} 40. axb6 {[%clk 0:00:05]}  Rxb6 {[%clk 0:00:04]} 41. Ra5 {[%clk 0:00:06]}  Rb3 {[%clk 0:00:03]} 42. Kg4 {[%clk 0:00:06]}  Rb6 {[%clk 0:00:03]} 43. e5 {[%clk 0:00:06]}  Kg7 {[%clk 0:00:03]} 44. f4 {[%clk 0:00:06]}  h6 {[%clk 0:00:01]} 45. Rc5 {[%clk 0:00:07]} 1-0


[Site "https://www.chess.com"]

[Event "Titled Tuesday Blitz October 18 Late 2022"]
[White "Ardila, Oscar Humberto"]
[Black "Noboa Silva, Kevin"]
[WhiteFideId "4404742"]
[BlackFideId "3618471"]
[WhiteElo "1898"]
[BlackElo "2178"]
[Result "0-1"]
[Round "04"]
[TimeControl "180+1"]
[Date "2022.10.19"]
[WhiteClock "0:00:15"]
[BlackClock "0:01:53"]

1. d4 {[%clk 0:02:59]}  g6 {[%clk 0:02:57]} 2. c4 {[%clk 0:02:59]}  Bg7 {[%clk 0:02:56]} 3. Nc3 {[%clk 0:02:59]}  c5 {[%clk 0:02:57]} 4. e3 {[%clk 0:02:59]}  cxd4 {[%clk 0:02:57]} 5. exd4 {[%clk 0:02:59]}  Nf6 {[%clk 0:02:57]} 6. Nf3 {[%clk 0:02:59]}  d5 {[%clk 0:02:58]} 7. c5 {[%clk 0:02:58]}  O-O {[%clk 0:02:58]} 8. h3 {[%clk 0:02:57]}  Bf5 {[%clk 0:02:57]} 9. Bb5 {[%clk 0:02:54]}  Ne4 {[%clk 0:02:53]} 10. O-O {[%clk 0:02:53]}  Nxc3 {[%clk 0:02:53]} 11. bxc3 {[%clk 0:02:51]}  Be4 {[%clk 0:02:53]} 12. Nd2 {[%clk 0:02:45]}  Bf5 {[%clk 0:02:45]} 13. Re1 {[%clk 0:02:43]}  e5 {[%clk 0:02:45]} 14. Nb3 {[%clk 0:02:37]}  e4 {[%clk 0:02:44]} 15. Be2 {[%clk 0:02:36]}  h5 {[%clk 0:02:43]} 16. Bf4 {[%clk 0:02:34]}  Nc6 {[%clk 0:02:41]} 17. Qd2 {[%clk 0:02:32]}  Re8 {[%clk 0:02:40]} 18. Bb5 {[%clk 0:02:26]}  Re6 {[%clk 0:02:34]} 19. Nc1 {[%clk 0:01:15]}  Na5 {[%clk 0:02:28]} 20. Nb3 {[%clk 0:01:05]}  Rc8 {[%clk 0:02:22]} 21. Nxa5 {[%clk 0:00:55]}  Qxa5 {[%clk 0:02:21]} 22. a4 {[%clk 0:00:53]}  Rd8 {[%clk 0:02:14]} 23. Be3 {[%clk 0:00:51]}  a6 {[%clk 0:02:12]} 24. Bf1 {[%clk 0:00:50]}  b6 {[%clk 0:02:10]} 25. cxb6 {[%clk 0:00:36]}  Rxb6 {[%clk 0:02:06]} 26. Rec1 {[%clk 0:00:31]}  Be6 {[%clk 0:01:54]} 27. Ra3 {[%clk 0:00:17]}  Rc8 {[%clk 0:01:54]} 28. Qb2 {[%clk 0:00:15]}  Rxb2 {[%clk 0:01:53]} 0-1


[Site "https://www.chess.com"]

[Event "Titled Tuesday Blitz October 18 Late 2022"]
[White "Arkell, Keith C"]
[Black "Burke, Paul"]
[WhiteFideId "400270"]
[BlackFideId "2605767"]
[WhiteElo "2336"]
[BlackElo "1882"]
[Result "1-0"]
[Round "04"]
[TimeControl "180+1"]
[Date "2022.10.19"]
[WhiteClock "0:02:42"]
[BlackClock "0:00:01"]

1. d4 {[%clk 0:02:55]}  Nf6 {[%clk 0:01:06]} 2. Nf3 {[%clk 0:02:54]}  d6 {[%clk 0:01:05]} 3. c4 {[%clk 0:02:54]}  g6 {[%clk 0:01:05]} 4. g3 {[%clk 0:02:54]}  Bg7 {[%clk 0:01:05]} 5. Bg2 {[%clk 0:02:54]}  O-O {[%clk 0:01:06]} 6. Nc3 {[%clk 0:02:53]}  Bd7 {[%clk 0:01:05]} 7. O-O {[%clk 0:02:53]}  Qc8 {[%clk 0:01:05]} 8. d5 {[%clk 0:02:52]}  Bh3 {[%clk 0:01:05]} 9. Be3 {[%clk 0:02:52]}  Bxg2 {[%clk 0:01:04]} 10. Kxg2 {[%clk 0:02:53]}  Qd7 {[%clk 0:00:57]} 11. Qd2 {[%clk 0:02:53]}  Re8 {[%clk 0:00:57]} 12. Bh6 {[%clk 0:02:53]}  Bh8 {[%clk 0:00:57]} 13. h3 {[%clk 0:02:54]}  c6 {[%clk 0:00:51]} 14. e4 {[%clk 0:02:53]}  cxd5 {[%clk 0:00:50]} 15. exd5 {[%clk 0:02:52]}  Na6 {[%clk 0:00:50]} 16. Rfe1 {[%clk 0:02:51]}  Rac8 {[%clk 0:00:48]} 17. b3 {[%clk 0:02:51]}  Nc5 {[%clk 0:00:43]} 18. Rad1 {[%clk 0:02:52]}  Qf5 {[%clk 0:00:27]} 19. Nd4 {[%clk 0:02:47]}  Qh5 {[%clk 0:00:23]} 20. Qg5 {[%clk 0:02:43]}  Qxg5 {[%clk 0:00:17]} 21. Bxg5 {[%clk 0:02:44]}  a6 {[%clk 0:00:12]} 22. g4 {[%clk 0:02:43]}  Ncd7 {[%clk 0:00:06]} 23. Be3 {[%clk 0:02:43]}  Ne5 {[%clk 0:00:01]} 24. f4 {[%clk 0:02:42]} 1-0


[Site "https://www.chess.com"]

[Event "Titled Tuesday Blitz October 18 Late 2022"]
[White "Becerra, Juan David"]
[Black "Goltsev, Dmitry"]
[WhiteFideId "4404998"]
[BlackFideId "24176710"]
[WhiteElo "2514"]
[BlackElo "2693"]
[Result "0-1"]
[Round "04"]
[TimeControl "180+1"]
[Date "2022.10.19"]
[WhiteClock "0:01:20"]
[BlackClock "0:01:49"]

1. e4 {[%clk 0:03:00]}  e6 {[%clk 0:02:56]} 2. d4 {[%clk 0:02:59]}  d5 {[%clk 0:02:57]} 3. Bd3 {[%clk 0:02:55]}  c5 {[%clk 0:02:57]} 4. exd5 {[%clk 0:02:52]}  exd5 {[%clk 0:02:58]} 5. Nf3 {[%clk 0:02:53]}  Nf6 {[%clk 0:02:57]} 6. O-O {[%clk 0:02:52]}  Be7 {[%clk 0:02:57]} 7. dxc5 {[%clk 0:02:52]}  Bxc5 {[%clk 0:02:58]} 8. Re1+ {[%clk 0:02:52]}  Be6 {[%clk 0:02:57]} 9. Ng5 {[%clk 0:02:49]}  O-O {[%clk 0:02:56]} 10. Qf3 {[%clk 0:02:41]}  h6 {[%clk 0:02:49]} 11. Nxe6 {[%clk 0:02:38]}  fxe6 {[%clk 0:02:50]} 12. Qh3 {[%clk 0:02:39]}  Ne4 {[%clk 0:02:28]} 13. Qxe6+ {[%clk 0:02:38]}  Kh8 {[%clk 0:02:28]} 14. Be3 {[%clk 0:02:38]}  Bxe3 {[%clk 0:02:27]} 15. Rxe3 {[%clk 0:02:32]}  Nxf2 {[%clk 0:02:23]} 16. Bf5 {[%clk 0:02:25]}  Qg5 {[%clk 0:02:18]} 17. Rf3 {[%clk 0:02:08]}  Nc6 {[%clk 0:02:02]} 18. Rxf2 {[%clk 0:02:01]}  Rae8 {[%clk 0:02:00]} 19. Bd3 {[%clk 0:01:21]}  Qc1+ {[%clk 0:01:57]} 20. Bf1 {[%clk 0:01:20]}  Rxe6 {[%clk 0:01:49]} 0-1


[Site "https://www.chess.com"]

[Event "Titled Tuesday Blitz October 18 Late 2022"]
[White "Bellissimo, Joseph F."]
[Black "Fernandez De La Vara, Arnaldo"]
[WhiteFideId "2609843"]
[BlackFideId "3518388"]
[WhiteElo "2103"]
[BlackElo "2387"]
[Result "0-1"]
[Round "04"]
[TimeControl "180+1"]
[Date "2022.10.19"]
[WhiteClock "0:00:11"]
[BlackClock "0:00:06"]

1. e4 {[%clk 0:03:00]}  c5 {[%clk 0:03:00]} 2. Nf3 {[%clk 0:02:57]}  e6 {[%clk 0:03:01]} 3. c3 {[%clk 0:02:57]}  d5 {[%clk 0:03:01]} 4. e5 {[%clk 0:02:57]}  d4 {[%clk 0:03:00]} 5. Bd3 {[%clk 0:02:56]}  Nc6 {[%clk 0:03:00]} 6. O-O {[%clk 0:02:56]}  Nge7 {[%clk 0:03:00]} 7. Re1 {[%clk 0:02:55]}  Ng6 {[%clk 0:03:01]} 8. g3 {[%clk 0:02:56]}  Be7 {[%clk 0:02:52]} 9. h4 {[%clk 0:02:46]}  f6 {[%clk 0:02:07]} 10. exf6 {[%clk 0:02:33]}  Bxf6 {[%clk 0:02:08]} 11. h5 {[%clk 0:02:30]}  Nge5 {[%clk 0:02:08]} 12. Nxe5 {[%clk 0:02:27]}  Nxe5 {[%clk 0:02:09]} 13. Be4 {[%clk 0:02:23]}  O-O {[%clk 0:01:46]} 14. f4 {[%clk 0:02:10]}  Nf7 {[%clk 0:01:27]} 15. Qf3 {[%clk 0:02:01]}  e5 {[%clk 0:01:07]} 16. d3 {[%clk 0:01:51]}  exf4 {[%clk 0:01:05]} 17. gxf4 {[%clk 0:01:51]}  dxc3 {[%clk 0:01:04]} 18. Nxc3 {[%clk 0:01:49]}  Ng5 {[%clk 0:00:57]} 19. Bd5+ {[%clk 0:01:42]}  Kh8 {[%clk 0:00:57]} 20. Qg2 {[%clk 0:01:25]}  Nh3+ {[%clk 0:00:53]} 21. Kh1 {[%clk 0:01:21]}  Bxc3 {[%clk 0:00:40]} 22. bxc3 {[%clk 0:01:20]}  Qh4 {[%clk 0:00:41]} 23. Rf1 {[%clk 0:00:32]}  Qxh5 {[%clk 0:00:19]} 24. Bf3 {[%clk 0:00:26]}  Qh4 {[%clk 0:00:13]} 25. Qh2 {[%clk 0:00:24]}  Bg4 {[%clk 0:00:12]} 26. Be4 {[%clk 0:00:21]}  Rae8 {[%clk 0:00:10]} 27. Be3 {[%clk 0:00:20]}  b6 {[%clk 0:00:10]} 28. Rae1 {[%clk 0:00:20]}  h6 {[%clk 0:00:07]} 29. Kg2 {[%clk 0:00:20]}  Qh5 {[%clk 0:00:04]} 30. Qg3 {[%clk 0:00:20]}  Rf6 {[%clk 0:00:02]} 31. Rh1 {[%clk 0:00:20]}  Rxe4 {[%clk 0:00:02]} 32. dxe4 {[%clk 0:00:19]}  Rg6 {[%clk 0:00:02]} 33. Kf1 {[%clk 0:00:16]}  Bf3 {[%clk 0:00:02]} 34. Qh2 {[%clk 0:00:15]}  Bg2+ {[%clk 0:00:01]} 35. Qxg2 {[%clk 0:00:14]}  Rxg2 {[%clk 0:00:02]} 36. Kxg2 {[%clk 0:00:15]}  Qg4+ {[%clk 0:00:03]} 37. Kh2 {[%clk 0:00:15]}  Qh4 {[%clk 0:00:02]} 38. Kg2 {[%clk 0:00:15]}  Qg4+ {[%clk 0:00:02]} 39. Kh2 {[%clk 0:00:15]}  Nxf4 {[%clk 0:00:03]} 40. Bxf4 {[%clk 0:00:14]}  Qxf4+ {[%clk 0:00:04]} 41. Kg2 {[%clk 0:00:15]}  Qd2+ {[%clk 0:00:04]} 42. Kf3 {[%clk 0:00:14]}  Qxc3+ {[%clk 0:00:04]} 43. Kf4 {[%clk 0:00:15]}  Qf6+ {[%clk 0:00:04]} 44. Kg4 {[%clk 0:00:15]}  Qe6+ {[%clk 0:00:04]} 45. Kf4 {[%clk 0:00:14]}  Qf6+ {[%clk 0:00:05]} 46. Ke3 {[%clk 0:00:14]}  Qd4+ {[%clk 0:00:05]} 47. Kf4 {[%clk 0:00:14]}  c4 {[%clk 0:00:05]} 48. Kf5 {[%clk 0:00:14]}  Qf6+ {[%clk 0:00:05]} 49. Kg4 {[%clk 0:00:14]}  Qe5 {[%clk 0:00:05]} 50. Rh5 {[%clk 0:00:13]}  Qe6+ {[%clk 0:00:05]} 51. Kf4 {[%clk 0:00:12]}  g5+ {[%clk 0:00:05]} 52. Ke3 {[%clk 0:00:11]}  Kg7 {[%clk 0:00:04]} 53. Rh2 {[%clk 0:00:10]}  b5 {[%clk 0:00:04]} 54. Rf2 {[%clk 0:00:10]}  Qe5 {[%clk 0:00:03]} 55. Rf5 {[%clk 0:00:09]}  Qc3+ {[%clk 0:00:03]} 56. Kf2 {[%clk 0:00:09]}  Qd4+ {[%clk 0:00:02]} 57. Kf1 {[%clk 0:00:08]}  Qd3+ {[%clk 0:00:02]} 58. Re2 {[%clk 0:00:08]}  c3 {[%clk 0:00:03]} 59. Rd5 {[%clk 0:00:07]}  Qc4 {[%clk 0:00:03]} 60. Rd1 {[%clk 0:00:06]}  b4 {[%clk 0:00:02]} 61. Rc1 {[%clk 0:00:07]}  a5 {[%clk 0:00:02]} 62. e5 {[%clk 0:00:07]}  Kf7 {[%clk 0:00:02]} 63. e6+ {[%clk 0:00:08]}  Ke7 {[%clk 0:00:03]} 64. Rd1 {[%clk 0:00:08]}  a4 {[%clk 0:00:02]} 65. Rd7+ {[%clk 0:00:08]}  Ke8 {[%clk 0:00:02]} 66. e7 {[%clk 0:00:08]}  Qxe2+ {[%clk 0:00:01]} 67. Kxe2 {[%clk 0:00:07]}  Kxd7 {[%clk 0:00:02]} 68. Kd3 {[%clk 0:00:08]}  Kxe7 {[%clk 0:00:02]} 69. Kc4 {[%clk 0:00:08]}  b3 {[%clk 0:00:03]} 70. Kb4 {[%clk 0:00:09]}  bxa2 {[%clk 0:00:03]} 71. Kxc3 {[%clk 0:00:09]}  a1=Q+ {[%clk 0:00:04]} 72. Kb4 {[%clk 0:00:10]}  a3 {[%clk 0:00:04]} 73. Ka5 {[%clk 0:00:10]}  a2 {[%clk 0:00:05]} 74. Ka4 {[%clk 0:00:11]}  Qb2 {[%clk 0:00:05]} 75. Ka5 {[%clk 0:00:11]}  a1=Q# {[%clk 0:00:06]} 0-1


[Site "https://www.chess.com"]

[Event "Titled Tuesday Blitz October 18 Late 2022"]
[White "Bilan, Danila"]
[Black "Bochnicka, Vladimir"]
[WhiteFideId "24161918"]
[BlackFideId "14943450"]
[WhiteElo "2203"]
[BlackElo "2239"]
[Result "1-0"]
[Round "04"]
[TimeControl "180+1"]
[Date "2022.10.19"]
[WhiteClock "0:01:10"]
[BlackClock "0:00:57"]

1. d4 {[%clk 0:02:58]}  Nf6 {[%clk 0:02:58]} 2. Nf3 {[%clk 0:02:59]}  g6 {[%clk 0:02:58]} 3. Bg5 {[%clk 0:02:58]}  Bg7 {[%clk 0:02:58]} 4. c3 {[%clk 0:02:58]}  O-O {[%clk 0:02:58]} 5. Nbd2 {[%clk 0:02:58]}  d6 {[%clk 0:02:59]} 6. e4 {[%clk 0:02:58]}  Nbd7 {[%clk 0:02:58]} 7. Qc2 {[%clk 0:02:56]}  h6 {[%clk 0:02:57]} 8. Bh4 {[%clk 0:02:56]}  g5 {[%clk 0:02:54]} 9. Bg3 {[%clk 0:02:56]}  Nh5 {[%clk 0:02:48]} 10. Nc4 {[%clk 0:02:47]}  e5 {[%clk 0:02:19]} 11. dxe5 {[%clk 0:02:44]}  dxe5 {[%clk 0:02:18]} 12. Ne3 {[%clk 0:02:31]}  Nc5 {[%clk 0:01:58]} 13. Bc4 {[%clk 0:02:20]}  Nf4 {[%clk 0:01:54]} 14. O-O {[%clk 0:02:15]}  h5 {[%clk 0:01:48]} 15. Rad1 {[%clk 0:02:09]}  Qe7 {[%clk 0:01:40]} 16. b4 {[%clk 0:02:03]}  Nce6 {[%clk 0:01:35]} 17. Nf5 {[%clk 0:01:59]}  Qf6 {[%clk 0:01:30]} 18. h4 {[%clk 0:01:45]}  Kh7 {[%clk 0:01:09]} 19. Bxe6 {[%clk 0:01:28]}  Bxe6 {[%clk 0:00:57]} 20. hxg5 {[%clk 0:01:10]} 1-0


[Site "https://www.chess.com"]

[Event "Titled Tuesday Blitz October 18 Late 2022"]
[White "Bluebaum, Matthias"]
[Black "Aghasiyev, Kamal"]
[WhiteFideId "24651516"]
[BlackFideId "13402854"]
[WhiteElo "2633"]
[BlackElo "2341"]
[Result "1-0"]
[Round "04"]
[TimeControl "180+1"]
[Date "2022.10.18"]
[WhiteClock "0:00:05"]
[BlackClock "0:00:10"]

1. d4 {[%clk 0:03:00]}  d5 {[%clk 0:02:59]} 2. c4 {[%clk 0:03:01]}  e6 {[%clk 0:03:00]} 3. Nc3 {[%clk 0:03:01]}  Nf6 {[%clk 0:03:00]} 4. Nf3 {[%clk 0:03:02]}  Be7 {[%clk 0:03:00]} 5. Qc2 {[%clk 0:03:01]}  O-O {[%clk 0:02:51]} 6. Bg5 {[%clk 0:03:01]}  Nbd7 {[%clk 0:02:50]} 7. O-O-O {[%clk 0:02:55]}  dxc4 {[%clk 0:02:20]} 8. e4 {[%clk 0:02:53]}  c6 {[%clk 0:02:20]} 9. Bxc4 {[%clk 0:02:52]}  b5 {[%clk 0:02:19]} 10. Bd3 {[%clk 0:02:52]}  h6 {[%clk 0:02:19]} 11. h4 {[%clk 0:02:45]}  Bb7 {[%clk 0:02:16]} 12. Qd2 {[%clk 0:02:40]}  b4 {[%clk 0:02:06]} 13. Ne2 {[%clk 0:02:37]}  c5 {[%clk 0:02:00]} 14. Ng3 {[%clk 0:02:20]}  c4 {[%clk 0:01:56]} 15. Bc2 {[%clk 0:02:14]}  c3 {[%clk 0:01:55]} 16. Qf4 {[%clk 0:02:14]}  cxb2+ {[%clk 0:01:38]} 17. Kb1 {[%clk 0:02:13]}  Nb6 {[%clk 0:01:33]} 18. Bxh6 {[%clk 0:02:06]}  Nc4 {[%clk 0:01:21]} 19. Rd3 {[%clk 0:01:51]}  Rc8 {[%clk 0:00:55]} 20. Bxg7 {[%clk 0:01:48]}  Kxg7 {[%clk 0:00:55]} 21. e5 {[%clk 0:01:48]}  Rh8 {[%clk 0:00:47]} 22. exf6+ {[%clk 0:01:28]}  Bxf6 {[%clk 0:00:48]} 23. Ne5 {[%clk 0:01:29]}  Na3+ {[%clk 0:00:41]} 24. Rxa3 {[%clk 0:01:29]}  bxa3 {[%clk 0:00:41]} 25. Nh5+ {[%clk 0:01:21]}  Rxh5 {[%clk 0:00:40]} 26. Qg4+ {[%clk 0:01:22]}  Kf8 {[%clk 0:00:33]} 27. Qxh5 {[%clk 0:01:22]}  Qc7 {[%clk 0:00:33]} 28. Qe2 {[%clk 0:00:34]}  Bxe5 {[%clk 0:00:30]} 29. dxe5 {[%clk 0:00:33]}  Ba6 {[%clk 0:00:31]} 30. Qd2 {[%clk 0:00:28]}  Qxe5 {[%clk 0:00:30]} 31. Qb4+ {[%clk 0:00:23]}  Qc5 {[%clk 0:00:27]} 32. Qxc5+ {[%clk 0:00:23]}  Rxc5 {[%clk 0:00:27]} 33. Rh3 {[%clk 0:00:24]}  Bf1 {[%clk 0:00:23]} 34. Rxa3 {[%clk 0:00:23]}  Bxg2 {[%clk 0:00:23]} 35. Rxa7 {[%clk 0:00:23]}  Rc4 {[%clk 0:00:20]} 36. Ra4 {[%clk 0:00:17]}  Rc3 {[%clk 0:00:10]} 37. Kxb2 {[%clk 0:00:16]}  Rf3 {[%clk 0:00:10]} 38. h5 {[%clk 0:00:08]}  Rxf2 {[%clk 0:00:09]} 39. h6 {[%clk 0:00:09]}  Bd5 {[%clk 0:00:08]} 40. Rh4 {[%clk 0:00:06]}  Kg8 {[%clk 0:00:08]} 41. Rg4+ {[%clk 0:00:06]}  Kh8 {[%clk 0:00:06]} 42. Rb4 {[%clk 0:00:07]}  f5 {[%clk 0:00:05]} 43. Kc3 {[%clk 0:00:05]}  Kh7 {[%clk 0:00:05]} 44. a4 {[%clk 0:00:05]}  Kxh6 {[%clk 0:00:06]} 45. a5 {[%clk 0:00:06]}  Rf3+ {[%clk 0:00:06]} 46. Kd4 {[%clk 0:00:06]}  Ra3 {[%clk 0:00:07]} 47. Ba4 {[%clk 0:00:06]}  f4 {[%clk 0:00:07]} 48. a6 {[%clk 0:00:04]}  f3 {[%clk 0:00:07]} 49. Bb5 {[%clk 0:00:04]}  Kg5 {[%clk 0:00:07]} 50. Kc5 {[%clk 0:00:04]}  f2 {[%clk 0:00:07]} 51. Kb6 {[%clk 0:00:04]}  f1=Q {[%clk 0:00:07]} 52. Bxf1 {[%clk 0:00:04]}  Kf6 {[%clk 0:00:08]} 53. a7 {[%clk 0:00:04]}  Ke5 {[%clk 0:00:08]} 54. Ba6 {[%clk 0:00:04]}  Kd6 {[%clk 0:00:08]} 55. Rb5 {[%clk 0:00:04]}  e5 {[%clk 0:00:09]} 56. Rxd5+ {[%clk 0:00:04]}  Kxd5 {[%clk 0:00:09]} 57. a8=Q+ {[%clk 0:00:05]}  Kd4 {[%clk 0:00:10]} 58. Qd8+ {[%clk 0:00:05]}  Ke3 {[%clk 0:00:10]} 59. Qg5+ {[%clk 0:00:05]}  Kd4 {[%clk 0:00:10]} 60. Qh4+ {[%clk 0:00:06]}  e4 {[%clk 0:00:11]} 61. Qf6+ {[%clk 0:00:06]}  Ke3 {[%clk 0:00:11]} 62. Qg5+ {[%clk 0:00:06]}  Kf2 {[%clk 0:00:10]} 63. Qc5+ {[%clk 0:00:05]}  e3 {[%clk 0:00:10]} 64. Qxa3 {[%clk 0:00:05]} 1-0


[Site "https://www.chess.com"]